fUST/lending_fUST_20250505
["ID","MTS","AMOUNT","RATE_DAILY","PERIOD"]
[359934332,1746432641569,-400.0,0.00035616,14]
[359934334,1746432641579,-400.0,0.00035616,14]
[359934336,1746432641589,-400.0,0.00035616,14]
[359934338,1746432641598,-400.0,0.00035616,14]
[359934340,1746432641607,-400.0,0.00035616,14]
[359934342,1746432641617,-400.0,0.00035616,14]
[359934344,1746432641626,-400.0,0.00035616,14]
[359934346,1746432641635,-400.0,0.00035616,14]
[359934348,1746432641644,-400.0,0.00035616,14]
[359934350,1746432641654,-400.0,0.00035616,14]
[359934352,1746432641663,-400.0,0.00035616,14]
[359934354,1746432641672,-400.0,0.00035616,14]
[359934356,1746432641681,-400.0,0.00035616,14]
[359934358,1746432641691,-400.0,0.00035616,14]
[359934360,1746432641700,-400.0,0.00035616,14]
[359934362,1746432641710,-400.0,0.00035616,14]
[359934364,1746432641719,-400.0,0.00035616,14]
[359934366,1746432641729,-400.0,0.00035616,14]
[359934368,1746432641740,-400.0,0.00035616,14]
[359934370,1746432641749,-400.0,0.00035616,14]
[359934372,1746432641759,-400.0,0.00035616,14]
[359934374,1746432641768,-401.56079675,0.00035616,14]
[359934376,1746432641777,-400.0,0.00035616,14]
[359934378,1746432641787,-400.0,0.00035616,14]
[359934380,1746432641795,-400.0,0.00035616,14]
[359934382,1746432641805,-400.0,0.00035616,14]
[359934384,1746432641814,-400.0,0.00035616,14]
[359934387,1746432641831,-506.10991377,0.00035616,14]
[359934389,1746432641840,-400.0,0.00035616,14]
[359934391,1746432641849,-400.0,0.00035616,14]
[359934393,1746432641859,-400.0,0.00035616,14]
[359934395,1746432641868,-203.08796587,0.00035616,14]
[359934397,1746432641877,-302.70407163,0.00035616,14]
[359934399,1746432641886,-400.0,0.00035616,14]
[359934401,1746432641896,-500.0,0.00035616,14]
[359934403,1746432641906,-400.0,0.00035616,14]
[359934405,1746432641916,-400.0,0.00035616,14]
[359934407,1746432641925,-400.0,0.00035616,14]
[359934409,1746432641934,-500.61918952,0.00035616,14]
[359934411,1746432641944,-503.28651076,0.00035616,14]
[359934413,1746432641953,-400.0,0.00035616,14]
[359934415,1746432641963,-502.98327723,0.00035616,14]
[359934417,1746432641972,-400.0,0.00035616,14]
[359934419,1746432641981,-459.50958313,0.00035616,14]
[359934421,1746432641991,-500.0,0.00035616,14]
[359934423,1746432642005,-400.0,0.00035616,14]
[359934425,1746432642014,-392.32755967,0.00035616,14]
[359934427,1746432642023,-400.0,0.00035616,14]
[359934429,1746432642032,-507.13171683,0.00035616,14]
[359934431,1746432642046,-400.0,0.00035616,14]
[359934433,1746432642055,-400.0,0.00035616,14]
[359934435,1746432642066,-400.0,0.00035616,14]
[359934437,1746432642079,-400.0,0.00035616,14]
[359934439,1746432642088,-400.0,0.00035616,14]
[359934441,1746432642098,-400.0,0.00035616,14]
[359934443,1746432642107,-505.63078173,0.00035616,14]
[359934445,1746432642117,-400.0,0.00035616,14]
[359934447,1746432642125,-400.0,0.00035616,14]
[359934449,1746432642135,-400.0,0.00035616,14]
[359934451,1746432642143,-400.0,0.00035616,14]
[359934453,1746432642153,-400.0,0.00035616,14]
[359934455,1746432642163,-400.0,0.00035616,14]
[359934457,1746432642172,-400.0,0.00035616,14]
[359934459,1746432642181,-400.0,0.00035616,14]
[359934461,1746432642191,-400.0,0.00035616,14]
[359934463,1746432642200,-223.84111814,0.00035616,14]
[359934465,1746432642209,-400.0,0.00035616,14]
[359934467,1746432642218,-400.0,0.00035616,14]
[359934469,1746432642227,-400.0,0.00035616,14]
[359934471,1746432642236,-400.0,0.00035616,14]
[359934473,1746432642246,-400.0,0.00035616,14]
[359934475,1746432642255,-400.0,0.00035616,14]
[359934477,1746432642264,-400.0,0.00035616,14]
[359934479,1746432642274,-400.0,0.00035616,14]
[359934481,1746432642284,-1471.68,0.00035616,14]
[359934483,1746432642293,-400.0,0.00035616,14]
[359934485,1746432642302,-400.0,0.00035616,14]
[359934487,1746432642312,-400.0,0.00035616,14]
[359934489,1746432642322,-400.0,0.00035616,14]
[359934491,1746432642331,-400.0,0.00035616,14]
[359934492,1746432642341,-400.0,0.00035616,14]
[359934495,1746432642350,-400.0,0.00035616,14]
[359934497,1746432642360,-400.0,0.00035616,14]
[359934498,1746432642369,-172.9230151,0.00035616,14]
[359934500,1746432642379,-400.0,0.00035616,14]
[359934502,1746432642388,-400.0,0.00035616,14]
[359934504,1746432642397,-400.0,0.00035616,14]
[359934506,1746432642406,-400.0,0.00035616,14]
[359934508,1746432642416,-400.0,0.00035616,14]
[359934510,1746432642425,-400.0,0.00035616,14]
[359934512,1746432642434,-400.0,0.00035616,14]
[359934514,1746432642443,-400.0,0.00035616,14]
[359934516,1746432642452,-400.0,0.00035616,14]
[359934518,1746432642462,-400.0,0.00035616,14]
[359934520,1746432642473,-400.0,0.00035616,14]
[359934522,1746432642483,-400.0,0.00035616,14]
[359934524,1746432642492,-1359.03,0.00035616,14]
[359934526,1746432642502,-413.97815311,0.00035616,14]
[359934528,1746432642511,-407.84,0.00035616,14]
[359934530,1746432642520,-400.0,0.00035616,14]
[359934532,1746432642530,-400.0,0.00035616,14]
[359934534,1746432642539,-405.65439734,0.00035616,14]
[359934536,1746432642549,-400.0,0.00035616,14]
[359934538,1746432642559,-400.0,0.00035616,14]
[359934540,1746432642568,-193.08410637,0.00035616,14]
[359934542,1746432642577,-400.0,0.00035616,14]
[359934544,1746432642586,-400.0,0.00035616,14]
[359934546,1746432642595,-400.0,0.00035616,14]
[359934548,1746432642605,-402.27004007,0.00035616,14]
[359934550,1746432642614,-402.36082064,0.00035616,14]
[359934552,1746432642623,-262.09838461,0.00035616,7]
[359934554,1746432642633,-400.0,0.00035616,14]
[359934556,1746432642642,-478.13,0.00035616,14]
[359934558,1746432642652,-400.0,0.00035616,14]
[359934560,1746432642661,-408.61030361,0.00035616,14]
[359934562,1746432642671,-500.0,0.00035616,14]
[359934564,1746432642680,-400.0,0.00035616,14]
[359934566,1746432642690,-400.0,0.00035616,14]
[359934568,1746432642699,-411.09685289,0.00035616,14]
[359934570,1746432642708,-400.0,0.00035616,14]
[359934572,1746432642717,-404.62402123,0.00035616,14]
[359934574,1746432642727,-400.0,0.00035616,14]
[359934576,1746432642737,-400.0,0.00035616,14]
[359934579,1746432642746,-400.0,0.00035616,14]
[359934581,1746432642756,-991.79,0.00035616,14]
[359934582,1746432642765,-20929.32,0.00035616,14]
[359934583,1746432642774,-400.0,0.00035616,14]
[359934584,1746432642784,-400.0,0.00035616,14]
[359934585,1746432642793,-473.96,0.00035616,14]
[359934586,1746432642803,-710.15,0.00035616,14]
[359934587,1746432642812,-1011.15,0.00035616,14]
[359934588,1746432642821,-400.0,0.00035616,14]
[359934589,1746432642830,-400.0,0.00035616,14]
[359934590,1746432642839,-400.0,0.00035616,14]
[359934591,1746432642848,-400.0,0.00035616,14]
[359934592,1746432642858,-400.0,0.00035616,14]
[359934593,1746432642867,-1281.84,0.00035616,14]
[359934594,1746432642876,-400.0,0.00035616,14]
[359934595,1746432642886,-1335.19,0.00035616,14]
[359934597,1746432642895,-400.0,0.00035616,14]
[359934599,1746432642905,-400.0,0.00035616,14]
[359934600,1746432642915,-593.4,0.00035616,14]
[359934601,1746432642924,-2951.14,0.00035616,14]
[359934602,1746432642934,-400.0,0.00035616,14]
[359934603,1746432642943,-400.0,0.00035616,14]
[359934604,1746432642953,-400.0,0.00035616,14]
[359934605,1746432642962,-529.61810904,0.00035616,14]
[359934606,1746432642971,-400.0,0.00035616,14]
[359934607,1746432642980,-400.0,0.00035616,14]
[359934608,1746432642990,-400.0,0.00035616,14]
[359934610,1746432643002,-1000.98567181,0.00035616,5]
[359934611,1746432643012,-400.0,0.00035616,14]
[359934614,1746432643021,-562.12,0.00035616,14]
[359934616,1746432643031,-1758.11,0.00035616,14]
[359934617,1746432643041,-1394.95,0.00035616,14]
[359934618,1746432643051,-400.0,0.00035616,14]
[359934620,1746432643060,-400.0,0.00035616,14]
[359934621,1746432643074,-400.0,0.00035616,14]
[359934623,1746432643085,-400.0,0.00035616,14]
[359934625,1746432643095,-492.47,0.00035616,14]
[359934627,1746432643106,-400.0,0.00035616,14]
[359934628,1746432643116,-902.78,0.00035616,14]
[359934630,1746432643126,-785.12,0.00035616,14]
[359934632,1746432643135,-460.9,0.00035616,14]
[359934634,1746432643145,-400.0,0.00035616,14]
[359934637,1746432643155,-433.08,0.00035616,14]
[359934638,1746432643164,-400.0,0.00035616,14]
[359934640,1746432643174,-400.0,0.00035616,14]
[359934641,1746432643183,-400.0,0.00035616,14]
[359934642,1746432643193,-448.81,0.00035616,14]
[359934643,1746432643203,-400.0,0.00035616,14]
[359934644,1746432643212,-400.0,0.00035616,14]
[359934645,1746432643222,-400.0,0.00035616,14]
[359934646,1746432643232,-400.0,0.00035616,14]
[359934647,1746432643242,-400.0,0.00035616,14]
[359934648,1746432643252,-400.0,0.00035616,14]
[359934649,1746432643261,-400.0,0.00035616,14]
[359934650,1746432643271,-1058.9,0.00035616,14]
[359934651,1746432643281,-400.0,0.00035616,14]
[359934652,1746432643291,-400.0,0.00035616,14]
[359934653,1746432643300,-2659.22,0.00035616,14]
[359934654,1746432643309,-712.06,0.00035616,14]
[359934656,1746432643320,-200.9442454,0.00035616,14]
[359934657,1746432643329,-400.0,0.00035616,14]
[359934659,1746432643339,-910.59,0.00035616,14]
[359934661,1746432643348,-400.0,0.00035616,14]
[359934662,1746432643358,-400.0,0.00035616,14]
[359934663,1746432643367,-400.0,0.00035616,14]
[359934664,1746432643377,-400.0,0.00035616,14]
[359934666,1746432643387,-400.0,0.00035616,14]
[359934667,1746432643397,-400.0,0.00035616,14]
[359934668,1746432643407,-973.17,0.00035616,14]
[359934669,1746432643416,-400.0,0.00035616,14]
[359934670,1746432643426,-400.0,0.00035616,14]
[359934671,1746432643436,-151.0,0.00035719,2]
[359934672,1746432643445,-215.0738,0.00035719,2]
[359934673,1746432643455,-525.71232281,0.0003579,2]
[359934675,1746432643464,-505.8533907,0.00035873,5]
[359934676,1746432643474,-500.0,0.00035873,5]
[359934677,1746432643483,-500.0,0.00035873,5]
[359934678,1746432643492,-27182.1399162,0.0003588,3]
[359934679,1746432643502,-200.2144101,0.0003589,14]
[359934680,1746432643511,-257.70409008,0.0003589,14]
[359934681,1746432643520,-401.43836479,0.0003589,14]
[359934682,1746432643529,-400.0,0.0003589,14]
[359934683,1746432643538,-400.0,0.0003589,14]
[359934684,1746432643547,-400.0,0.0003589,14]
[359934685,1746432643556,-400.0,0.0003589,14]
[359934686,1746432643565,-400.0,0.0003589,14]
[359934687,1746432643575,-400.0,0.0003589,14]
[359934689,1746432643585,-400.0,0.0003589,14]
[359934690,1746432643594,-345.93297759,0.0003589,14]
[359934691,1746432643603,-400.0,0.0003589,14]
[359934692,1746432643613,-490.23753563,0.0003589,14]
[359934693,1746432643622,-400.0,0.0003589,14]
[359934694,1746432643632,-360.23553727,0.0003589,14]
[359934695,1746432643641,-400.0,0.0003589,14]
[359934696,1746432643650,-400.0,0.0003589,14]
[359934697,1746432643660,-683.03,0.0003589,14]
[359934698,1746432643669,-400.0,0.0003589,14]
[359934699,1746432643680,-400.0,0.0003589,14]
[359934700,1746432643690,-408.9382936,0.0003589,14]
[359934701,1746432643701,-400.0,0.0003589,14]
[359934702,1746432643711,-400.0,0.0003589,14]
[359934703,1746432643721,-1464.24,0.0003589,31]
[359934704,1746432643731,-400.0,0.0003589,14]
[359934705,1746432643740,-855.06,0.0003589,2]
[359934706,1746432643750,-400.0,0.0003589,14]
[359934707,1746432643760,-400.0,0.0003589,14]
[359934708,1746432643770,-1075.05,0.0003589,14]
[359934709,1746432643780,-400.0,0.0003589,14]
[359934710,1746432643790,-400.0,0.0003589,14]
[359934711,1746432643801,-400.0,0.0003589,14]
[359934712,1746432643811,-628.89,0.0003589,14]
[359934713,1746432643822,-400.0,0.0003589,14]
[359934714,1746432643831,-400.0,0.0003589,14]
[359934715,1746432643841,-400.0,0.0003589,14]
[359934716,1746432643850,-231.64187264,0.0003589,14]
[359934717,1746432643859,-444.38986862,0.0003589,14]
[359934718,1746432643869,-400.0,0.0003589,14]
[359934719,1746432643878,-400.0,0.0003589,14]
[359934720,1746432643887,-400.0,0.0003589,14]
[359934721,1746432643898,-428.84,0.0003589,14]
[359934722,1746432643907,-400.0,0.0003589,14]
[359934723,1746432643916,-400.0,0.0003589,14]
[359934724,1746432643926,-400.0,0.0003589,14]
[359934725,1746432643936,-1008.57,0.0003589,14]
[359934726,1746432643946,-400.0,0.0003589,14]
[359934727,1746432643956,-400.0,0.0003589,14]
[359934728,1746432643966,-400.0,0.0003589,14]
[359934729,1746432643975,-400.0,0.0003589,14]
[359934730,1746432643984,-400.0,0.0003589,14]
[359934731,1746432643993,-400.0,0.0003589,14]
[359934732,1746432644007,-400.0,0.0003589,14]
[359934733,1746432644017,-222.14,0.0003589,14]
[359934734,1746432644029,-400.0,0.0003589,14]
[359934735,1746432644039,-419.15006573,0.0003589,14]
[359934736,1746432644051,-400.0,0.0003589,14]
[359934737,1746432644060,-400.0,0.0003589,14]
[359934738,1746432644070,-547.64,0.0003589,14]
[359934739,1746432644080,-400.0,0.0003589,14]
[359934740,1746432644089,-400.0,0.0003589,14]
[359934741,1746432644099,-400.0,0.0003589,14]
[359934742,1746432644109,-400.0,0.0003589,14]
[359934743,1746432644119,-452.9,0.0003589,14]
[359934744,1746432644131,-400.0,0.0003589,14]
[359934745,1746432644140,-400.0,0.0003589,14]
[359934746,1746432644150,-400.0,0.0003589,14]
[359934747,1746432644159,-470.08075673,0.0003589,14]
[359934748,1746432644169,-400.0,0.0003589,14]
[359934749,1746432644179,-400.0,0.0003589,14]
[359934750,1746432644308,-400.0,0.0003589,14]
[359934751,1746432644318,-400.0,0.0003589,14]
[359934752,1746432644328,-400.0,0.0003589,14]
[359934753,1746432644338,-400.0,0.0003589,14]
[359934754,1746432644348,-400.0,0.0003589,14]
[359934755,1746432644358,-400.0,0.0003589,14]
[359934756,1746432644367,-400.0,0.0003589,14]
[359934757,1746432644378,-400.0,0.0003589,14]
[359934758,1746432644388,-400.0,0.0003589,14]
[359934759,1746432644399,-400.0,0.0003589,14]
[359934760,1746432644408,-413.58811443,0.0003589,14]
[359934761,1746432644418,-400.0,0.0003589,14]
[359934762,1746432644428,-403.17323971,0.0003589,14]
[359934763,1746432644437,-400.0,0.0003589,14]
[359934764,1746432644447,-400.0,0.0003589,14]
[359934765,1746432644458,-400.0,0.0003589,14]
[359934766,1746432644468,-415.31673981,0.0003589,14]
[359934767,1746432644478,-400.0,0.0003589,14]
[359934768,1746432644488,-400.0,0.0003589,14]
[359934769,1746432644498,-400.0,0.0003589,14]
[359934770,1746432644508,-400.0,0.0003589,14]
[359934771,1746432644518,-400.0,0.0003589,14]
[359934772,1746432644528,-400.0,0.0003589,14]
[359934773,1746432644538,-400.0,0.0003589,14]
[359934774,1746432644547,-400.0,0.0003589,14]
[359934775,1746432644556,-400.0,0.0003589,14]
[359934776,1746432644565,-400.0,0.0003589,14]
[359934777,1746432644575,-400.0,0.0003589,14]
[359934778,1746432644585,-400.0,0.0003589,14]
[359934779,1746432644595,-1471.68,0.0003589,14]
[359934780,1746432644604,-400.0,0.0003589,14]
[359934781,1746432644615,-400.0,0.0003589,14]
[359934782,1746432644625,-400.0,0.0003589,14]
[359934783,1746432644634,-400.0,0.0003589,14]
[359934784,1746432644644,-400.0,0.0003589,14]
[359934785,1746432644654,-400.0,0.0003589,14]
[359934786,1746432644663,-225.04182471,0.0003589,14]
[359934787,1746432644673,-416.48461931,0.0003589,14]
[359934788,1746432644682,-400.0,0.0003589,14]
[359934789,1746432644692,-400.0,0.0003589,14]
[359934790,1746432644702,-400.0,0.0003589,14]
[359934791,1746432644712,-400.0,0.0003589,14]
[359934792,1746432644722,-400.0,0.0003589,14]
[359934793,1746432644732,-400.0,0.0003589,14]
[359934794,1746432644741,-290.67844779,0.0003589,14]
[359934795,1746432644751,-400.0,0.0003589,14]
[359934796,1746432644761,-400.0,0.0003589,14]
[359934797,1746432644771,-1359.03,0.0003589,14]
[359934798,1746432644781,-407.84,0.0003589,14]
[359934799,1746432644791,-400.0,0.0003589,14]
[359934800,1746432644801,-400.0,0.0003589,14]
[359934801,1746432644810,-400.0,0.0003589,14]
[359934802,1746432644820,-400.0,0.0003589,14]
[359934803,1746432644829,-400.0,0.0003589,14]
[359934804,1746432644839,-400.0,0.0003589,14]
[359934805,1746432644849,-400.0,0.0003589,14]
[359934806,1746432644859,-478.13,0.0003589,14]
[359934807,1746432644869,-400.0,0.0003589,14]
[359934808,1746432644878,-400.0,0.0003589,14]
[359934809,1746432644888,-400.0,0.0003589,14]
[359934810,1746432644898,-400.0,0.0003589,14]
[359934811,1746432644908,-991.79,0.0003589,14]
[359934812,1746432644920,-20929.32,0.0003589,14]
[359934813,1746432644931,-400.0,0.0003589,14]
[359934814,1746432644941,-473.96,0.0003589,14]
[359934815,1746432644951,-710.15,0.0003589,14]
[359934816,1746432644961,-1011.15,0.0003589,14]
[359934817,1746432644972,-400.0,0.0003589,14]
[359934818,1746432644981,-400.0,0.0003589,14]
[359934819,1746432644991,-400.0,0.0003589,14]
[359934820,1746432645007,-400.0,0.0003589,14]
[359934821,1746432645019,-1281.84,0.0003589,14]
[359934822,1746432645028,-400.0,0.0003589,14]
[359934823,1746432645038,-1335.19,0.0003589,14]
[359934824,1746432645049,-400.0,0.0003589,14]
[359934825,1746432645059,-593.4,0.0003589,14]
[359934826,1746432645069,-2951.14,0.0003589,14]
[359934827,1746432645079,-400.0,0.0003589,14]
[359934828,1746432645089,-400.0,0.0003589,14]
[359934829,1746432645100,-400.0,0.0003589,14]
[359934830,1746432645110,-400.0,0.0003589,14]
[359934831,1746432645120,-400.0,0.0003589,14]
[359934832,1746432645130,-400.0,0.0003589,14]
[359934833,1746432645139,-400.0,0.0003589,14]
[359934834,1746432645148,-562.12,0.0003589,14]
[359934835,1746432645158,-1758.11,0.0003589,14]
[359934836,1746432645169,-1394.95,0.0003589,14]
[359934837,1746432645179,-400.0,0.0003589,14]
[359934838,1746432645188,-400.0,0.0003589,14]
[359934839,1746432645197,-400.0,0.0003589,14]
[359934840,1746432645207,-492.47,0.0003589,14]
[359934841,1746432645216,-400.0,0.0003589,14]
[359934842,1746432645226,-902.78,0.0003589,14]
[359934843,1746432645235,-785.12,0.0003589,14]
[359934844,1746432645245,-460.9,0.0003589,14]
[359934845,1746432645255,-400.0,0.0003589,14]
[359934846,1746432645266,-433.08,0.0003589,14]
[359934847,1746432645276,-400.0,0.0003589,14]
[359934848,1746432645286,-448.81,0.0003589,14]
[359934849,1746432645298,-400.0,0.0003589,14]
[359934850,1746432645308,-400.0,0.0003589,14]
[359934851,1746432645318,-400.0,0.0003589,14]
[359934852,1746432645328,-400.0,0.0003589,14]
[359934853,1746432645338,-400.0,0.0003589,14]
[359934854,1746432645347,-1058.9,0.0003589,14]
[359934855,1746432645357,-400.0,0.0003589,14]
[359934856,1746432645367,-2659.22,0.0003589,14]
[359934857,1746432645376,-712.06,0.0003589,14]
[359934858,1746432645386,-910.59,0.0003589,14]
[359934859,1746432645396,-400.0,0.0003589,14]
[359934860,1746432645406,-400.0,0.0003589,14]
[359934861,1746432645415,-400.0,0.0003589,14]
[359934862,1746432645426,-400.0,0.0003589,14]
[359934863,1746432645436,-400.0,0.0003589,14]
[359934864,1746432645446,-973.17,0.0003589,14]
[359934865,1746432645455,-12809.51,0.000359,30]
[359934866,1746432645465,-421.83547488,0.000359,30]
[359934867,1746432645475,-906.74,0.000359,30]
[359934868,1746432645485,-293.24491777,0.00035924,2]
[359934869,1746432645495,-457.30942968,0.00035934,33]
[359934870,1746432645504,-7009.61151314,0.0003599,2]
[359934871,1746432645514,-230.0,0.00036,10]
[359934872,1746432645524,-179.08150384,0.00036054,2]
[359934873,1746432645534,-2186.47914856,0.00036129,2]
[359934874,1746432645544,-400.0,0.00036164,14]
[359934875,1746432645554,-400.0,0.00036164,14]
[359934876,1746432645563,-400.0,0.00036164,14]
[359934877,1746432645573,-400.0,0.00036164,14]
[359934878,1746432645583,-400.0,0.00036164,14]
[359934879,1746432645593,-531.7489157,0.00036164,14]
[359934880,1746432645603,-400.0,0.00036164,14]
[359934881,1746432645612,-400.0,0.00036164,14]
[359934882,1746432645622,-400.0,0.00036164,14]
[359934883,1746432645631,-683.03,0.00036164,14]
[359934884,1746432645641,-400.0,0.00036164,14]
[359934885,1746432645651,-400.0,0.00036164,14]
[359934886,1746432645660,-400.0,0.00036164,14]
[359934887,1746432645672,-400.0,0.00036164,14]
[359934888,1746432645685,-855.06,0.00036164,2]
[359934889,1746432645699,-400.0,0.00036164,14]
[359934890,1746432645712,-1075.05,0.00036164,14]
[359934891,1746432645726,-408.43778808,0.00036164,14]
[359934892,1746432645737,-409.1137732,0.00036164,14]
[359934893,1746432645748,-400.0,0.00036164,14]
[359934894,1746432645760,-628.89,0.00036164,14]
[359934895,1746432645773,-400.0,0.00036164,14]
[359934896,1746432645785,-400.0,0.00036164,14]
[359934897,1746432645799,-400.0,0.00036164,14]
[359934899,1746432645812,-400.0,0.00036164,14]
[359934900,1746432645825,-400.0,0.00036164,14]
[359934901,1746432645838,-452.23051336,0.00036164,14]
[359934902,1746432645851,-428.84,0.00036164,14]
[359934903,1746432645864,-400.0,0.00036164,14]
[359934904,1746432645877,-400.0,0.00036164,14]
[359934905,1746432645890,-1008.57,0.00036164,14]
[359934906,1746432645903,-164.5715043,0.00036164,14]
[359934907,1746432645916,-400.0,0.00036164,14]
[359934908,1746432645928,-400.0,0.00036164,14]
[359934909,1746432645940,-400.0,0.00036164,14]
[359934910,1746432645953,-277.87480249,0.00036164,14]
[359934911,1746432645967,-405.42,0.00036164,14]
[359934912,1746432645979,-345.49759679,0.00036164,14]
[359934913,1746432645992,-400.0,0.00036164,14]
[359934914,1746432646007,-400.0,0.00036164,14]
[359934915,1746432646018,-400.0,0.00036164,14]
[359934916,1746432646031,-400.0,0.00036164,14]
[359934917,1746432646043,-400.0,0.00036164,14]
[359934918,1746432646055,-452.9,0.00036164,14]
[359934919,1746432646068,-400.0,0.00036164,14]
[359934920,1746432646080,-400.0,0.00036164,14]
[359934921,1746432646095,-400.0,0.00036164,14]
[359934922,1746432646107,-400.0,0.00036164,14]
[359934923,1746432646121,-400.0,0.00036164,14]
[359934924,1746432646134,-400.0,0.00036164,14]
[359934925,1746432646148,-400.0,0.00036164,14]
[359934926,1746432646163,-400.0,0.00036164,14]
[359934927,1746432646174,-400.0,0.00036164,14]
[359934928,1746432646184,-400.0,0.00036164,14]
[359934929,1746432646195,-400.0,0.00036164,14]
[359934930,1746432646205,-400.0,0.00036164,14]
[359934931,1746432646217,-400.0,0.00036164,14]
[359934932,1746432646230,-400.0,0.00036164,14]
[359934933,1746432646245,-400.0,0.00036164,14]
[359934934,1746432646259,-400.0,0.00036164,14]
[359934935,1746432646271,-400.0,0.00036164,14]
[359934936,1746432646282,-400.0,0.00036164,14]
[359934938,1746432646294,-400.0,0.00036164,14]
[359934940,1746432646306,-400.0,0.00036164,14]
[359934942,1746432646318,-400.0,0.00036164,14]
[359934943,1746432646330,-406.33311062,0.00036164,14]
[359934944,1746432646342,-400.0,0.00036164,14]
[359934945,1746432646355,-400.0,0.00036164,14]
[359934947,1746432646365,-400.0,0.00036164,14]
[359934948,1746432646376,-400.0,0.00036164,14]
[359934949,1746432646387,-1471.68,0.00036164,14]
[359934950,1746432646397,-400.0,0.00036164,14]
[359934951,1746432646408,-400.0,0.00036164,14]
[359934952,1746432646419,-400.0,0.00036164,14]
[359934953,1746432646430,-400.0,0.00036164,14]
[359934954,1746432646442,-400.0,0.00036164,14]
[359934955,1746432646452,-400.0,0.00036164,14]
[359934956,1746432646464,-400.0,0.00036164,14]
[359934957,1746432646474,-400.0,0.00036164,14]
[359934958,1746432646485,-400.0,0.00036164,14]
[359934959,1746432646496,-400.0,0.00036164,14]
[359934960,1746432646507,-400.0,0.00036164,14]
[359934961,1746432646519,-400.0,0.00036164,14]
[359934962,1746432646530,-159.3687046,0.00036164,14]
[359934963,1746432646542,-400.0,0.00036164,14]
[359934964,1746432646554,-1359.03,0.00036164,14]
[359934965,1746432646564,-407.84,0.00036164,14]
[359934966,1746432646575,-400.0,0.00036164,14]
[359934967,1746432646587,-415.61013223,0.00036164,14]
[359934969,1746432646597,-400.0,0.00036164,14]
[359934970,1746432646614,-188.50303411,0.00036164,14]
[359934971,1746432646633,-400.0,0.00036164,14]
[359934972,1746432646645,-400.0,0.00036164,14]
[359934973,1746432646656,-400.0,0.00036164,14]
[359934974,1746432646667,-478.13,0.00036164,14]
[359934975,1746432646678,-400.0,0.00036164,14]
[359934976,1746432646689,-400.0,0.00036164,14]
[359934977,1746432646700,-400.0,0.00036164,14]
[359934978,1746432646712,-400.0,0.00036164,14]
[359934979,1746432646723,-991.79,0.00036164,14]
[359934980,1746432646735,-13149.4557447,0.00036164,14]
[359934981,1746432646758,-7779.8642553,0.00036164,14]
[359934982,1746432646769,-488.13,0.00036164,14]
[359934983,1746432646780,-473.96,0.00036164,14]
[359934984,1746432646791,-710.15,0.00036164,14]